[Event "Late-Titled-Tuesday-Blitz-February-06-2024"]
[Site "Chess.com"]
[Date "2024.02.06"]
[Round "1"]
[White "iwanyu"]
[Black "ChessFighter1975"]
[Result "1-0"]
[WhiteElo "2815"]
[BlackElo "2425"]
[TimeControl "180+1"]
[EndTime "14:02:18 PST"]
[Termination "iwanyu won by resignation"]

1. d4 {[%clk 0:03:00.9]} 1... d6 {[%clk 0:03:00.4]} 2. Nf3 {[%clk 0:03:00.1]}
2... Nf6 {[%clk 0:03:00.9]} 3. g3 {[%clk 0:02:59.6]} 3... g6 {[%clk 0:03:01]} 4.
c4 {[%clk 0:03:00.2]} 4... Bg7 {[%clk 0:03:01.7]} 5. Bg2 {[%clk 0:03:00.8]} 5...
O-O {[%clk 0:03:02.6]} 6. Nc3 {[%clk 0:03:01.2]} 6... Nc6 {[%clk 0:03:03.4]} 7.
d5 {[%clk 0:03:00.6]} 7... Na5 {[%clk 0:03:03.2]} 8. b3 {[%clk 0:03:01]} 8...
Ne4 {[%clk 0:02:51.5]} 9. Nxe4 {[%clk 0:03:00.9]} 9... Bxa1 {[%clk 0:02:51.7]}
10. Bd2 {[%clk 0:02:57.1]} 10... Bg7 {[%clk 0:02:48.2]} 11. Bxa5 {[%clk
0:02:56.4]} 11... b6 {[%clk 0:02:46.8]} 12. Bd2 {[%clk 0:02:54.3]} 12... e5
{[%clk 0:02:47]} 13. dxe6 {[%clk 0:02:52.4]} 13... fxe6 {[%clk 0:02:46.9]} 14.
h4 {[%clk 0:02:49.9]} 14... h6 {[%clk 0:02:46.3]} 15. Nc3 {[%clk 0:02:48.2]}
15... Bb7 {[%clk 0:02:45.3]} 16. Qc2 {[%clk 0:02:47.3]} 16... Qe8 {[%clk
0:02:44.7]} 17. O-O {[%clk 0:02:46.1]} 17... a5 {[%clk 0:02:44.3]} 18. Qc1
{[%clk 0:02:46]} 18... Kh7 {[%clk 0:02:43.9]} 19. Qc2 {[%clk 0:02:32]} 19... Rb8
{[%clk 0:02:41.9]} 20. h5 {[%clk 0:02:30.7]} 20... Qf7 {[%clk 0:02:16.5]} 21.
Nh4 {[%clk 0:02:26.8]} 1-0

[Event "Late-Titled-Tuesday-Blitz-February-06-2024"]
[Site "Chess.com"]
[Date "2024.02.06"]
[Round "1"]
[White "Chess2Hawks"]
[Black "jaskol95"]
[Result "0-1"]
[WhiteElo "2207"]
[BlackElo "2593"]
[TimeControl "180+1"]
[EndTime "14:02:59 PST"]
[Termination "jaskol95 won by checkmate"]

1. d4 {[%clk 0:02:56.5]} 1... d5 {[%clk 0:03:00.2]} 2. c4 {[%clk 0:02:55.7]}
2... e5 {[%clk 0:03:00.5]} 3. dxe5 {[%clk 0:02:54]} 3... d4 {[%clk 0:03:00.9]}
4. Nf3 {[%clk 0:02:53.3]} 4... Nc6 {[%clk 0:03:01.4]} 5. b3 {[%clk 0:02:45.7]}
5... f6 {[%clk 0:02:57.3]} 6. e6 {[%clk 0:02:41.1]} 6... Bxe6 {[%clk 0:02:53.4]}
7. Bb2 {[%clk 0:02:41.4]} 7... Bc5 {[%clk 0:02:41.1]} 8. Nbd2 {[%clk 0:02:30.2]}
8... Bf5 {[%clk 0:02:29.8]} 9. a3 {[%clk 0:02:26.2]} 9... Qe7 {[%clk 0:02:05.4]}
10. b4 {[%clk 0:02:02.2]} 10... Bxb4 {[%clk 0:02:02.7]} 11. axb4 {[%clk
0:02:00.8]} 11... Nxb4 {[%clk 0:02:02.7]} 12. Nxd4 {[%clk 0:01:39.9]} 12... Nd3#
{[%clk 0:02:02.8]} 0-1

[Event "Late-Titled-Tuesday-Blitz-February-06-2024"]
[Site "Chess.com"]
[Date "2024.02.06"]
[Round "1"]
[White "Perecke"]
[Black "trriinu"]
[Result "0-1"]
[WhiteElo "2560"]
[BlackElo "2203"]
[TimeControl "180+1"]
[EndTime "14:03:01 PST"]
[Termination "trriinu won by resignation"]

1. e4 {[%clk 0:02:37.1]} 1... d5 {[%clk 0:02:56.5]} 2. exd5 {[%clk 0:02:21.9]}
2... Qxd5 {[%clk 0:02:57.4]} 3. Nc3 {[%clk 0:02:21.8]} 3... Qd6 {[%clk
0:02:57.7]} 4. Bc4 {[%clk 0:02:22.2]} 4... Nf6 {[%clk 0:02:58.3]} 5. Nge2 {[%clk
0:02:22.5]} 5... Nc6 {[%clk 0:02:58.2]} 6. d3 {[%clk 0:02:22.8]} 6... Bg4 {[%clk
0:02:58.4]} 7. h3 {[%clk 0:02:20.6]} 7... Bxe2 {[%clk 0:02:48.7]} 8. Nxe2 {[%clk
0:02:16.9]} 8... e5 {[%clk 0:02:48.8]} 9. Be3 {[%clk 0:02:15.2]} 9... O-O-O
{[%clk 0:02:45.9]} 10. c3 {[%clk 0:02:15.8]} 10... Nd5 {[%clk 0:02:41.2]} 11.
Bd2 {[%clk 0:01:58]} 11... f5 {[%clk 0:02:37.6]} 12. Ng3 {[%clk 0:01:56.5]}
12... g6 {[%clk 0:02:36.8]} 13. Qb3 {[%clk 0:01:48.3]} 13... Nb6 {[%clk
0:02:34.5]} 14. O-O-O {[%clk 0:01:47.7]} 14... Na5 {[%clk 0:02:32.3]} 15. Qa4
{[%clk 0:01:46.4]} 15... Nxa4 {[%clk 0:02:03.5]} 0-1

[Event "Late-Titled-Tuesday-Blitz-February-06-2024"]
[Site "Chess.com"]
[Date "2024.02.06"]
[Round "1"]
[White "Goryachkina"]
[Black "CFalcons8"]
[Result "1-0"]
[WhiteElo "2672"]
[BlackElo "2353"]
[TimeControl "180+1"]
[EndTime "14:03:19 PST"]
[Termination "Goryachkina won by checkmate"]

1. e4 {[%clk 0:02:59.9]} 1... e5 {[%clk 0:02:59.4]} 2. Nf3 {[%clk 0:03:00.1]}
2... Nc6 {[%clk 0:02:59.3]} 3. Nc3 {[%clk 0:03:00.2]} 3... Nf6 {[%clk
0:02:59.5]} 4. h3 {[%clk 0:03:00.3]} 4... d5 {[%clk 0:02:53.2]} 5. exd5 {[%clk
0:02:59.4]} 5... Nxd5 {[%clk 0:02:54.1]} 6. Bb5 {[%clk 0:02:59.4]} 6... Nxc3
{[%clk 0:02:53.4]} 7. bxc3 {[%clk 0:03:00.3]} 7... Bd6 {[%clk 0:02:51.6]} 8. O-O
{[%clk 0:02:55.7]} 8... O-O {[%clk 0:02:52.1]} 9. d4 {[%clk 0:02:53.5]} 9...
exd4 {[%clk 0:02:50.7]} 10. cxd4 {[%clk 0:02:52.7]} 10... a6 {[%clk 0:02:50.3]}
11. Bc4 {[%clk 0:02:25.7]} 11... Ne7 {[%clk 0:02:39]} 12. c3 {[%clk 0:02:22.2]}
12... b5 {[%clk 0:02:39.1]} 13. Bd3 {[%clk 0:02:19.7]} 13... Bb7 {[%clk
0:02:39]} 14. Re1 {[%clk 0:01:43.2]} 14... c5 {[%clk 0:02:34.4]} 15. Bxh7+
{[%clk 0:01:35.1]} 15... Kxh7 {[%clk 0:02:29]} 16. Ng5+ {[%clk 0:01:35.2]} 16...
Kg6 {[%clk 0:02:26.5]} 17. Qg4 {[%clk 0:01:19.7]} 17... f5 {[%clk 0:02:24.1]}
18. Qh4 {[%clk 0:01:18.5]} 18... Rh8 {[%clk 0:02:23]} 19. Re6# {[%clk 0:01:18]}
1-0

[Event "Late-Titled-Tuesday-Blitz-February-06-2024"]
[Site "Chess.com"]
[Date "2024.02.06"]
[Round "1"]
[White "Korchmar_Vasiliy"]
[Black "TheAlienParty"]
[Result "1-0"]
[WhiteElo "2720"]
[BlackElo "2382"]
[TimeControl "180+1"]
[EndTime "14:03:29 PST"]
[Termination "Korchmar_Vasiliy won by checkmate"]

1. e4 {[%clk 0:03:00.9]} 1... e5 {[%clk 0:02:59]} 2. Nf3 {[%clk 0:03:01.3]} 2...
Nc6 {[%clk 0:02:58.6]} 3. Bc4 {[%clk 0:03:01.8]} 3... Bc5 {[%clk 0:02:58]} 4. c3
{[%clk 0:03:02.1]} 4... Nf6 {[%clk 0:02:57.4]} 5. d3 {[%clk 0:03:02.7]} 5... O-O
{[%clk 0:02:56.4]} 6. Bg5 {[%clk 0:03:03.2]} 6... d6 {[%clk 0:02:52.4]} 7. Nbd2
{[%clk 0:03:02.7]} 7... Be6 {[%clk 0:02:52]} 8. O-O {[%clk 0:02:55.6]} 8... Qe7
{[%clk 0:02:44.6]} 9. Bd5 {[%clk 0:02:52.2]} 9... Nd8 {[%clk 0:02:36.2]} 10. d4
{[%clk 0:02:41.9]} 10... Bb6 {[%clk 0:02:23.6]} 11. Nc4 {[%clk 0:02:20.1]} 11...
c6 {[%clk 0:02:20.4]} 12. dxe5 {[%clk 0:02:09.3]} 12... dxe5 {[%clk 0:02:13.8]}
13. Bxe6 {[%clk 0:02:08.6]} 13... Nxe6 {[%clk 0:02:07.5]} 14. Bxf6 {[%clk
0:02:08.9]} 14... gxf6 {[%clk 0:02:05.7]} 15. Nh4 {[%clk 0:02:01.3]} 15... Ng7
{[%clk 0:02:04.8]} 16. Qg4 {[%clk 0:01:58.4]} 16... Kh8 {[%clk 0:02:03.7]} 17.
Qxg7+ {[%clk 0:01:58.6]} 17... Kxg7 {[%clk 0:02:02.7]} 18. Nf5+ {[%clk
0:01:59.1]} 18... Kh8 {[%clk 0:02:02.6]} 19. Nxe7 {[%clk 0:01:59.5]} 19... Rfd8
{[%clk 0:01:57]} 20. Nxb6 {[%clk 0:01:57.5]} 20... axb6 {[%clk 0:01:56.5]} 21.
Rfd1 {[%clk 0:01:50.7]} 21... Rxd1+ {[%clk 0:01:54.9]} 22. Rxd1 {[%clk
0:01:51.6]} 22... Rxa2 {[%clk 0:01:55.2]} 23. Rd8+ {[%clk 0:01:46.9]} 23... Kg7
{[%clk 0:01:55]} 24. Nf5+ {[%clk 0:01:47.6]} 24... Kg6 {[%clk 0:01:55]} 25. Rg8+
{[%clk 0:01:47.4]} 25... Kh5 {[%clk 0:01:54.7]} 26. g4# {[%clk 0:01:48]} 1-0

[Event "Late-Titled-Tuesday-Blitz-February-06-2024"]
[Site "Chess.com"]
[Date "2024.02.06"]
[Round "1"]
[White "Ykow"]
[Black "Zhigalko_Sergei"]
[Result "0-1"]
[WhiteElo "2507"]
[BlackElo "2953"]
[TimeControl "180+1"]
[EndTime "14:03:41 PST"]
[Termination "Zhigalko_Sergei won by resignation"]

1. e4 {[%clk 0:03:00.9]} 1... c5 {[%clk 0:02:59.3]} 2. Nf3 {[%clk 0:03:00.8]}
2... Nc6 {[%clk 0:02:59.7]} 3. Bb5 {[%clk 0:03:00.4]} 3... Nf6 {[%clk
0:02:59.8]} 4. Nc3 {[%clk 0:02:59.9]} 4... Qc7 {[%clk 0:02:59.8]} 5. O-O {[%clk
0:03:00]} 5... Nd4 {[%clk 0:02:58.5]} 6. Re1 {[%clk 0:03:00]} 6... a6 {[%clk
0:02:58.6]} 7. Bf1 {[%clk 0:02:59.3]} 7... Ng4 {[%clk 0:02:58.4]} 8. e5 {[%clk
0:02:59.8]} 8... h5 {[%clk 0:02:58.4]} 9. d3 {[%clk 0:02:32.7]} 9... e6 {[%clk
0:02:53.9]} 10. Bf4 {[%clk 0:02:22.2]} 10... d6 {[%clk 0:02:50.6]} 11. exd6
{[%clk 0:01:37.7]} 11... Bxd6 {[%clk 0:02:51.5]} 12. Bxd6 {[%clk 0:01:38.1]}
12... Qxd6 {[%clk 0:02:51.2]} 13. g3 {[%clk 0:01:38.8]} 13... Nf5 {[%clk
0:02:25.1]} 14. Ne4 {[%clk 0:01:36.4]} 14... Qc7 {[%clk 0:02:25.1]} 15. d4
{[%clk 0:01:31]} 15... cxd4 {[%clk 0:02:11.3]} 16. Nxd4 {[%clk 0:01:31.9]} 16...
O-O {[%clk 0:02:11.2]} 17. Nxf5 {[%clk 0:01:31.4]} 17... exf5 {[%clk 0:02:10.8]}
18. Nc3 {[%clk 0:01:25.2]} 18... Be6 {[%clk 0:02:05.7]} 19. Qf3 {[%clk 0:01:09]}
0-1

[Event "Late-Titled-Tuesday-Blitz-February-06-2024"]
[Site "Chess.com"]
[Date "2024.02.06"]
[Round "1"]
[White "PapaieDudu"]
[Black "FaustinoOro"]
[Result "0-1"]
[WhiteElo "2402"]
[BlackElo "2748"]
[TimeControl "180+1"]
[EndTime "14:03:57 PST"]
[Termination "FaustinoOro won by resignation"]

1. Nf3 {[%clk 0:02:59.2]} 1... Nf6 {[%clk 0:02:59.9]} 2. d4 {[%clk 0:02:59.2]}
2... e6 {[%clk 0:02:59.2]} 3. c4 {[%clk 0:02:59.6]} 3... d5 {[%clk 0:02:58.5]}
4. Nc3 {[%clk 0:02:59.1]} 4... Bb4 {[%clk 0:02:57]} 5. e3 {[%clk 0:02:56.1]}
5... O-O {[%clk 0:02:56.2]} 6. Bd3 {[%clk 0:02:56.2]} 6... c5 {[%clk 0:02:52.8]}
7. O-O {[%clk 0:02:55.7]} 7... cxd4 {[%clk 0:02:52.6]} 8. exd4 {[%clk
0:02:56.4]} 8... Nc6 {[%clk 0:02:51.7]} 9. Bg5 {[%clk 0:02:56.6]} 9... Be7
{[%clk 0:02:46.9]} 10. cxd5 {[%clk 0:02:52.1]} 10... Nxd5 {[%clk 0:02:45]} 11.
Bxe7 {[%clk 0:02:52.2]} 11... Ncxe7 {[%clk 0:02:41.8]} 12. Bxh7+ {[%clk
0:02:47.2]} 12... Kxh7 {[%clk 0:02:40]} 13. Ng5+ {[%clk 0:02:46.9]} 13... Kg8
{[%clk 0:02:39.7]} 14. Qh5 {[%clk 0:02:44]} 14... Nf6 {[%clk 0:02:38.8]} 15. Qe2
{[%clk 0:02:29.7]} 15... Qxd4 {[%clk 0:02:33.7]} 16. Rad1 {[%clk 0:02:28.3]}
16... Qg4 {[%clk 0:02:31.3]} 17. Nf3 {[%clk 0:02:27.4]} 17... Nfd5 {[%clk
0:02:27]} 18. h3 {[%clk 0:02:01.9]} 18... Nxc3 {[%clk 0:02:18.9]} 19. Qc2 {[%clk
0:01:45.5]} 19... Qf5 {[%clk 0:02:08.1]} 20. Qxc3 {[%clk 0:01:45.5]} 20... Nd5
{[%clk 0:02:07.1]} 21. Qb3 {[%clk 0:01:37.5]} 21... b6 {[%clk 0:02:05.5]} 22.
Nd4 {[%clk 0:01:37.1]} 22... Qf6 {[%clk 0:02:03.9]} 23. Nc6 {[%clk 0:01:37.2]}
23... Bb7 {[%clk 0:02:03]} 24. Nd4 {[%clk 0:01:31.5]} 24... Nf4 {[%clk
0:02:02.4]} 25. f3 {[%clk 0:01:28.1]} 25... Qg5 {[%clk 0:01:58.9]} 26. Rd2
{[%clk 0:01:26.3]} 26... Nxh3+ {[%clk 0:01:59.1]} 27. Kh2 {[%clk 0:01:26.3]}
27... Qxd2 {[%clk 0:01:59.7]} 0-1

[Event "Late-Titled-Tuesday-Blitz-February-06-2024"]
[Site "Chess.com"]
[Date "2024.02.06"]
[Round "1"]
[White "FrenchHarvey"]
[Black "Supergiuly"]
[Result "1-0"]
[WhiteElo "2692"]
[BlackElo "2371"]
[TimeControl "180+1"]
[EndTime "14:04:04 PST"]
[Termination "FrenchHarvey won by checkmate"]

1. e4 {[%clk 0:03:00.2]} 1... e5 {[%clk 0:02:57.7]} 2. Nf3 {[%clk 0:03:00]} 2...
Nc6 {[%clk 0:02:56.5]} 3. Bb5 {[%clk 0:02:59.8]} 3... a6 {[%clk 0:02:55.4]} 4.
Ba4 {[%clk 0:02:59.8]} 4... b5 {[%clk 0:02:55.6]} 5. Bb3 {[%clk 0:02:59.5]} 5...
Na5 {[%clk 0:02:55.8]} 6. O-O {[%clk 0:02:56.3]} 6... g5 {[%clk 0:02:49.7]} 7.
Nxe5 {[%clk 0:02:49.8]} 7... Nh6 {[%clk 0:02:49.7]} 8. d4 {[%clk 0:02:44.1]}
8... d6 {[%clk 0:02:47.5]} 9. Nd3 {[%clk 0:02:32.2]} 9... Bg7 {[%clk 0:02:44.2]}
10. c3 {[%clk 0:02:31.4]} 10... O-O {[%clk 0:02:38.5]} 11. Bc2 {[%clk
0:02:31.2]} 11... Bb7 {[%clk 0:02:37.4]} 12. d5 {[%clk 0:02:30.6]} 12... Nc4
{[%clk 0:02:34.5]} 13. Qh5 {[%clk 0:02:30.2]} 13... f6 {[%clk 0:02:28.5]} 14. f4
{[%clk 0:02:30]} 14... Nf7 {[%clk 0:02:27.4]} 15. b3 {[%clk 0:02:27.6]} 15...
Nb6 {[%clk 0:02:23.2]} 16. Nb4 {[%clk 0:02:27.2]} 16... Qe7 {[%clk 0:02:18.5]}
17. e5 {[%clk 0:02:24.4]} 17... Bh6 {[%clk 0:02:03.2]} 18. e6 {[%clk 0:02:22.5]}
18... Nxd5 {[%clk 0:01:59.7]} 19. Nxd5 {[%clk 0:02:14.8]} 19... Bxd5 {[%clk
0:01:25.1]} 20. exf7+ {[%clk 0:02:12.2]} 20... Bxf7 {[%clk 0:01:24.3]} 21. Qxh6
{[%clk 0:02:11.4]} 21... Bd5 {[%clk 0:01:23]} 22. Nd2 {[%clk 0:01:58.3]} 22...
Qe3+ {[%clk 0:01:07]} 23. Kh1 {[%clk 0:01:56.4]} 23... Qxc3 {[%clk 0:01:02.6]}
24. Qxh7# {[%clk 0:01:55.5]} 1-0

[Event "Late-Titled-Tuesday-Blitz-February-06-2024"]
[Site "Chess.com"]
[Date "2024.02.06"]
[Round "1"]
[White "Marcan2b"]
[Black "ybothg"]
[Result "1-0"]
[WhiteElo "3003"]
[BlackElo "2517"]
[TimeControl "180+1"]
[EndTime "14:04:06 PST"]
[Termination "Marcan2b won by resignation"]

1. e4 {[%clk 0:03:00.9]} 1... c5 {[%clk 0:03:00.3]} 2. Nf3 {[%clk 0:02:59.8]}
2... e6 {[%clk 0:03:00.8]} 3. c3 {[%clk 0:02:59.7]} 3... Nf6 {[%clk 0:02:55.8]}
4. Bd3 {[%clk 0:02:59.7]} 4... Nc6 {[%clk 0:02:54]} 5. O-O {[%clk 0:02:59.3]}
5... Be7 {[%clk 0:02:52.9]} 6. Re1 {[%clk 0:02:59]} 6... d5 {[%clk 0:02:52.7]}
7. e5 {[%clk 0:02:58.2]} 7... Nd7 {[%clk 0:02:52]} 8. Bb5 {[%clk 0:02:58.9]}
8... O-O {[%clk 0:02:51]} 9. d4 {[%clk 0:02:59.3]} 9... a6 {[%clk 0:02:42.9]}
10. Bd3 {[%clk 0:02:58.1]} 10... c4 {[%clk 0:02:33.8]} 11. Bc2 {[%clk
0:02:55.9]} 11... b5 {[%clk 0:02:34]} 12. Nbd2 {[%clk 0:02:56.6]} 12... a5
{[%clk 0:02:23.5]} 13. Nf1 {[%clk 0:02:56.8]} 13... b4 {[%clk 0:02:24]} 14. Ng3
{[%clk 0:02:56.6]} 14... Re8 {[%clk 0:02:17.1]} 15. Qd2 {[%clk 0:02:53]} 15...
Nf8 {[%clk 0:02:14.6]} 16. Qf4 {[%clk 0:02:53.1]} 16... Ng6 {[%clk 0:02:09.2]}
17. Qg4 {[%clk 0:02:53.2]} 17... f5 {[%clk 0:01:54.5]} 18. exf6 {[%clk
0:02:54.1]} 18... Bxf6 {[%clk 0:01:54.9]} 19. Bxg6 {[%clk 0:02:53.9]} 19... hxg6
{[%clk 0:01:53.7]} 20. Qxg6 {[%clk 0:02:54.8]} 20... Ne7 {[%clk 0:01:37.7]} 21.
Qh5 {[%clk 0:02:53.5]} 21... Bd7 {[%clk 0:01:32.9]} 22. Bg5 {[%clk 0:02:52.7]}
22... Rf8 {[%clk 0:01:30.6]} 23. h4 {[%clk 0:02:47.1]} 23... Nf5 {[%clk
0:01:18.2]} 24. Nxf5 {[%clk 0:02:46.7]} 24... exf5 {[%clk 0:01:19.1]} 25. Ne5
{[%clk 0:02:46.7]} 25... Be8 {[%clk 0:01:16.5]} 26. Qf3 {[%clk 0:02:45.9]} 26...
Bxg5 {[%clk 0:01:16.3]} 27. hxg5 {[%clk 0:02:46.8]} 27... Ra6 {[%clk 0:01:03.4]}
28. Qf4 {[%clk 0:02:44]} 28... Bh5 {[%clk 0:01:00.4]} 29. Re3 {[%clk 0:02:43.3]}
29... bxc3 {[%clk 0:00:54.1]} 30. bxc3 {[%clk 0:02:44.2]} 30... Qb8 {[%clk
0:00:48.9]} 31. Rae1 {[%clk 0:02:43.9]} 31... Re6 {[%clk 0:00:42.9]} 32. Rh3
{[%clk 0:02:43]} 32... g6 {[%clk 0:00:43.2]} 33. Rhe3 {[%clk 0:02:43]} 1-0

[Event "Late-Titled-Tuesday-Blitz-February-06-2024"]
[Site "Chess.com"]
[Date "2024.02.06"]
[Round "1"]
[White "HalfIsCrayfish"]
[Black "Horokoskii"]
[Result "1-0"]
[WhiteElo "2571"]
[BlackElo "2147"]
[TimeControl "180+1"]
[EndTime "14:04:06 PST"]
[Termination "HalfIsCrayfish won by resignation"]

1. Nc3 {[%clk 0:02:59.2]} 1... Nf6 {[%clk 0:02:57]} 2. e4 {[%clk 0:02:58.3]}
2... e6 {[%clk 0:02:57.2]} 3. e5 {[%clk 0:02:57.8]} 3... Ng8 {[%clk 0:02:56.5]}
4. d4 {[%clk 0:02:56.7]} 4... d6 {[%clk 0:02:56.7]} 5. Nf3 {[%clk 0:02:56.8]}
5... Nc6 {[%clk 0:02:55.1]} 6. Bb5 {[%clk 0:02:55.4]} 6... Bd7 {[%clk
0:02:52.2]} 7. O-O {[%clk 0:02:53.5]} 7... a6 {[%clk 0:02:49.1]} 8. Bd3 {[%clk
0:02:50.5]} 8... dxe5 {[%clk 0:02:47.7]} 9. dxe5 {[%clk 0:02:49.9]} 9... Nge7
{[%clk 0:02:47.7]} 10. Bg5 {[%clk 0:02:47]} 10... h6 {[%clk 0:02:40.6]} 11. Bh4
{[%clk 0:02:45.3]} 11... g5 {[%clk 0:02:40]} 12. Bg3 {[%clk 0:02:45]} 12... Nf5
{[%clk 0:02:33.7]} 13. Qe2 {[%clk 0:02:32.9]} 13... Ncd4 {[%clk 0:02:27.3]} 14.
Nxd4 {[%clk 0:02:32.4]} 14... Nxd4 {[%clk 0:02:27.5]} 15. Qh5 {[%clk 0:02:30.8]}
15... Bc6 {[%clk 0:02:23.3]} 16. Rad1 {[%clk 0:02:29.2]} 16... Qe7 {[%clk
0:02:19.5]} 17. Be4 {[%clk 0:02:18.5]} 17... Rd8 {[%clk 0:02:16.8]} 18. Bxc6+
{[%clk 0:02:16.6]} 18... Nxc6 {[%clk 0:02:17.7]} 19. Ne4 {[%clk 0:02:16.5]}
19... Bg7 {[%clk 0:01:57.2]} 20. f4 {[%clk 0:02:07.7]} 20... Rxd1 {[%clk
0:01:42.5]} 21. Qxd1 {[%clk 0:02:04.4]} 21... gxf4 {[%clk 0:01:39.8]} 22. Bxf4
{[%clk 0:01:52.5]} 22... Bxe5 {[%clk 0:01:34.9]} 23. Bxe5 {[%clk 0:01:51.6]}
23... Nxe5 {[%clk 0:01:35.8]} 24. Nf6+ {[%clk 0:01:52.1]} 24... Kf8 {[%clk
0:01:31.8]} 25. Qd4 {[%clk 0:01:48.7]} 25... Qd6 {[%clk 0:01:27.2]} 26. Qxe5
{[%clk 0:01:48.2]} 1-0

[Event "Late-Titled-Tuesday-Blitz-February-06-2024"]
[Site "Chess.com"]
[Date "2024.02.06"]
[Round "1"]
[White "messiboca"]
[Black "esrosenberg"]
[Result "1-0"]
[WhiteElo "2777"]
[BlackElo "2414"]
[TimeControl "180+1"]
[EndTime "14:04:14 PST"]
[Termination "messiboca won by resignation"]

1. Nf3 {[%clk 0:03:00.9]} 1... d5 {[%clk 0:02:58.6]} 2. c4 {[%clk 0:03:00]} 2...
d4 {[%clk 0:02:58.5]} 3. b4 {[%clk 0:02:57.7]} 3... f6 {[%clk 0:02:46.4]} 4. e3
{[%clk 0:02:56.3]} 4... dxe3 {[%clk 0:02:40.8]} 5. fxe3 {[%clk 0:02:55.8]} 5...
e5 {[%clk 0:02:41.1]} 6. c5 {[%clk 0:02:40.4]} 6... a5 {[%clk 0:02:39.7]} 7. Bc4
{[%clk 0:02:34.3]} 7... Nh6 {[%clk 0:02:36.5]} 8. O-O {[%clk 0:02:20.9]} 8...
axb4 {[%clk 0:02:34.2]} 9. Nxe5 {[%clk 0:02:21]} 9... Nc6 {[%clk 0:02:05.1]} 10.
Nxc6 {[%clk 0:01:29.2]} 10... bxc6 {[%clk 0:02:04.5]} 11. Qh5+ {[%clk
0:01:29.8]} 11... g6 {[%clk 0:02:00.3]} 12. Qf3 {[%clk 0:01:30.5]} 12... Bg7
{[%clk 0:01:23.3]} 13. Qxc6+ {[%clk 0:01:25.5]} 13... Bd7 {[%clk 0:01:23.9]} 14.
Qe4+ {[%clk 0:01:25.5]} 14... Kf8 {[%clk 0:01:18.5]} 15. Bb2 {[%clk 0:01:21.5]}
15... f5 {[%clk 0:01:16.9]} 16. Bxg7+ {[%clk 0:01:20.7]} 16... Kxg7 {[%clk
0:01:17]} 17. Qd4+ {[%clk 0:01:21.4]} 1-0

[Event "Late-Titled-Tuesday-Blitz-February-06-2024"]
[Site "Chess.com"]
[Date "2024.02.06"]
[Round "1"]
[White "Cambek64"]
[Black "DonkyDonkyDonkey"]
[Result "0-1"]
[WhiteElo "2492"]
[BlackElo "2929"]
[TimeControl "180+1"]
[EndTime "14:04:21 PST"]
[Termination "DonkyDonkyDonkey won by resignation"]

1. b3 {[%clk 0:02:59.2]} 1... e5 {[%clk 0:02:59.7]} 2. Bb2 {[%clk 0:02:58.6]}
2... Nc6 {[%clk 0:03:00.4]} 3. e3 {[%clk 0:02:57.9]} 3... Nf6 {[%clk 0:03:00.8]}
4. c4 {[%clk 0:02:58.2]} 4... d5 {[%clk 0:03:00.4]} 5. cxd5 {[%clk 0:02:57.4]}
5... Nxd5 {[%clk 0:03:01.3]} 6. a3 {[%clk 0:02:57.3]} 6... Bd6 {[%clk
0:03:01.4]} 7. Qc2 {[%clk 0:02:57.3]} 7... O-O {[%clk 0:03:01.2]} 8. d3 {[%clk
0:02:56.1]} 8... Re8 {[%clk 0:03:01]} 9. Nd2 {[%clk 0:02:56.7]} 9... Be6 {[%clk
0:02:59.2]} 10. Be2 {[%clk 0:02:57]} 10... Qg5 {[%clk 0:02:56.4]} 11. g3 {[%clk
0:02:55.8]} 11... Rad8 {[%clk 0:02:54.7]} 12. Ngf3 {[%clk 0:02:55.9]} 12... Qe7
{[%clk 0:02:54.8]} 13. b4 {[%clk 0:02:48.7]} 13... a6 {[%clk 0:02:52.5]} 14. h4
{[%clk 0:02:43.9]} 14... h6 {[%clk 0:02:48.4]} 15. Ne4 {[%clk 0:02:41]} 15... f5
{[%clk 0:02:44.8]} 16. Nc5 {[%clk 0:02:36]} 16... Bxc5 {[%clk 0:02:44.9]} 17.
bxc5 {[%clk 0:02:28.5]} 17... Bf7 {[%clk 0:02:44.2]} 18. O-O {[%clk 0:02:22]}
18... f4 {[%clk 0:02:41.2]} 19. exf4 {[%clk 0:02:20.5]} 19... exf4 {[%clk
0:02:42.1]} 20. Rfe1 {[%clk 0:02:20.2]} 20... fxg3 {[%clk 0:02:42.1]} 21. fxg3
{[%clk 0:02:19.2]} 21... Qe3+ {[%clk 0:02:41.5]} 22. Kg2 {[%clk 0:02:19.2]}
22... Bh5 {[%clk 0:02:35]} 23. Qc4 {[%clk 0:01:52.6]} 23... Qxe2+ {[%clk
0:02:29.6]} 24. Rxe2 {[%clk 0:01:51.4]} 24... Rxe2+ {[%clk 0:02:30.5]} 25. Kh3
{[%clk 0:01:48.4]} 25... Bxf3 {[%clk 0:02:31.4]} 26. Rb1 {[%clk 0:01:22.3]}
26... Bg2+ {[%clk 0:02:26.7]} 27. Kh2 {[%clk 0:01:20.3]} 27... Kh7 {[%clk
0:02:18.6]} 28. Kg1 {[%clk 0:01:09.8]} 28... Bf3 {[%clk 0:02:15]} 29. Qb3 {[%clk
0:00:53.5]} 29... Rg2+ {[%clk 0:02:13.2]} 30. Kf1 {[%clk 0:00:52.9]} 30... Ne3+
{[%clk 0:02:13.6]} 0-1